[Event "FIDE WYCC Open U14 2023"]
[Site "Montesilvano"]
[Date "2023.11.14"]
[Round "2.2"]
[White "Bolat, Inayat"]
[Black "Uskov, Artem"]
[Result "1/2-1/2"]
[ECO "B44"]
[WhiteElo "2088"]
[BlackElo "2380"]
[Annotator "ChessBase"]
[PlyCount "285"]
[EventDate "2023.11.13"]
[EventType "swiss"]
[EventCountry "ITA"]
[SourceTitle "playchess.com"]
[Source "ChessBase"]
[SourceQuality "1"]
[TimeControl "40/5400+30:1800+30"]

1. e4 {[%emt 0:00:03]} c5 {[%emt 0:00:06]} 2. Nf3 {[%emt 0:00:07]} e6 {[%emt 0:00:09]} 3. d4 {[%emt 0:00:09]} cxd4 {[%emt 0:00:06]} 4. Nxd4 {[%emt 0:00:04]} Nc6 {[%emt 0:00:10]} 5. Bf4 {[%emt 0:10:11]} d6 {[%emt 0:24:28]} 6. Nxc6 {[%emt 0:00:12]} bxc6 {[%emt 0:00:07]} 7. c4 {[%emt 0:00:02]} e5 {[%emt 0:00:25]} 8. Bg3 {[%emt 0:00:43]} Nf6 {[%emt 0:00:15]} 9. Nc3 {[%emt 0:00:12]} Rb8 {[%emt 0:00:24]} 10. Qd2 {[%emt 0:07:39]} Nd7 {[%emt 0:03:45]} 11. Be2 {[%emt 0:01:32]} Nc5 {[%emt 0:00:13]} 12. O-O {[%emt 0:01:56]} Be7 {[%emt 0:00:20]} 13. Rfd1 {[%emt 0:07:24]} O-O {[%emt 0:02:03]} 14. b4 {[%emt 0:33:47]} Rxb4 {[%emt 0:06:32]} 15. Nb5 {[%emt 0:00:47]} Qa5 {[%emt 0:10:43]} 16. Nxd6 {[%emt 0:02:23]} Bxd6 {[%emt 0:00:45]} 17. Qxd6 {[%emt 0:00:59]} f6 {[%emt 0:00:55]} 18. f3 {[%emt 0:01:56]} Rb2 {[%emt 0:00:55]} 19. Be1 {[%emt 0:01:20]} Qa4 {[%emt 0:00:56]} 20. Qxc5 {[%emt 0:03:18]} Rxe2 {[%emt 0:00:53]} 21. a3 {[%emt 0:04:36]} Be6 {[%emt 0:03:52]} 22. Rac1 {[%emt 0:04:31]} Re8 {[%emt 0:04:40]} 23. Qb4 {[%emt 0:07:43]} Qxb4 {[%emt 0:01:54]} 24. Bxb4 {[%emt 0:00:07]} Kf7 {[%emt 0:00:17]} 25. Rd6 {[%emt 0:00:20]} Rc8 {[%emt 0:00:08]} 26. Rd2 {[%emt 0:02:49]} Rxd2 {[%emt 0:00:22]} 27. Bxd2 {[%emt 0:00:02]} Rd8 {[%emt 0:00:08]} 28. Bb4 {[%emt 0:00:21]} Rd3 {[%emt 0:00:11]} 29. Kf2 {[%emt 0:00:18]} Rb3 {[%emt 0:00:31]} 30. Rc2 {[%emt 0:00:35]} g5 {[%emt 0:00:18]} 31. c5 {[%emt 0:01:05]} h5 {[%emt 0:00:45]} 32. h3 {[%emt 0:00:50]} g4 {[%emt 0:00:40]} 33. hxg4 {[%emt 0:00:05]} hxg4 {[%emt 0:00:05]} 34. Rd2 {[%emt 0:00:41]} Ke7 {[%emt 0:00:10]} 35. Rd6 {[%emt 0:00:32]} gxf3 {[%emt 0:01:13]} 36. gxf3 {[%emt 0:01:09]} Bd7 {[%emt 0:00:06]} 37. Kg3 {[%emt 0:00:43]} Be8 {[%emt 0:00:11]} 38. Kg4 {[%emt 0:00:40]} Bd7+ {[%emt 0:00:13]} 39. Kg3 {[%emt 0:00:14]} a6 {[%emt 0:01:16]} 40. Kf2 {[%emt 0:00:00]} Be8 {[%emt 0:00:00]} 41. Ba5 {[%emt 0:02:41]} Bd7 {[%emt 0:04:21]} 42. Bb4 {[%emt 0:00:25]} Rb2+ {[%emt 0:00:58]} 43. Rd2 {[%emt 0:00:28]} Rb1 {[%emt 0:00:04]} 44. Kg3 {[%emt 0:00:37]} Rc1 {[%emt 0:00:06]} 45. Rh2 {[%emt 0:00:18]} Rg1+ {[%emt 0:00:43]} 46. Kf2 {[%emt 0:00:27]} Rg8 {[%emt 0:00:23]} 47. Rh7+ {[%emt 0:00:15]} Ke6 {[%emt 0:00:06]} 48. Ba5 {[%emt 0:00:55]} Re8 {[%emt 0:00:25]} 49. Bc7 {[%emt 0:00:27]} Re7 {[%emt 0:00:05]} 50. Rh6 {[%emt 0:00:24]} Be8 {[%emt 0:00:57]} 51. Bd6 {[%emt 0:00:16]} Rb7 {[%emt 0:02:26]} 52. Rh8 {[%emt 0:01:01]} Bf7 {[%emt 0:00:04]} 53. Ra8 {[%emt 0:00:48]} Bh5 {[%emt 0:00:37]} 54. Rh8 {[%emt 0:05:40]} Bf7 {[%emt 0:00:21]} 55. Rc8 {[%emt 0:00:10]} Kd7 {[%emt 0:01:31]} 56. Ra8 {[%emt 0:00:47]} Bh5 {[%emt 0:01:36]} 57. Rxa6 {[%emt 0:00:45]} Rb2+ {[%emt 0:00:04]} 58. Kg3 {[%emt 0:00:09]} Rb3 {[%emt 0:00:04]} 59. Ra7+ {[%emt 0:00:08]} Ke8 {[%emt 0:00:09]} 60. a4 {[%emt 0:04:08]} Bxf3 {[%emt 0:00:24]} 61. a5 {[%emt 0:00:16]} Bxe4+ {[%emt 0:01:11]} 62. Kf2 {[%emt 0:00:04]} Rf3+ {[%emt 0:01:13]} 63. Ke1 {[%emt 0:00:25]} Ra3 {[%emt 0:00:24]} 64. a6 {[%emt 0:00:25]} Bd3 {[%emt 0:01:14]} 65. Re7+ {[%emt 0:00:21]} Kd8 {[%emt 0:00:05]} 66. a7 {[%emt 0:00:11]} Bf5 {[%emt 0:00:53]} 67. Rf7 {[%emt 0:02:26]} Bd7 {[%emt 0:00:22]} 68. Bb8 {[%emt 0:00:31]} e4 {[%emt 0:00:38]} 69. Rxf6 {[%emt 0:02:07]} e3 {[%emt 0:00:31]} 70. Rf8+ {[%emt 0:00:57]} Be8 {[%emt 0:00:04]} 71. Rh8 {[%emt 0:00:14]} Kd7 {[%emt 0:00:17]} 72. Bf4 {[%emt 0:02:30]} Ra2 {[%emt 0:09:19]} 73. Bxe3 {[%emt 0:00:11]} Ke7 {[%emt 0:00:03]} 74. Bd2 {[%emt 0:01:47]} Ra1+ {[%emt 0:00:36]} 75. Ke2 {[%emt 0:00:19]} Ra2 {[%emt 0:00:04]} 76. Kf3 {[%emt 0:01:14]} Ra4 {[%emt 0:00:39]} 77. Bf4 {[%emt 0:00:35]} Ra3+ {[%emt 0:00:06]} 78. Be3 {[%emt 0:01:37]} Ra4 {[%emt 0:01:00]} 79. Bg5+ {[%emt 0:01:03]} Kd7 {[%emt 0:00:26]} 80. Bf4 {[%emt 0:00:52]} Ke7 {[%emt 0:02:32]} 81. Bd6+ {[%emt 0:00:11]} Kd8 {[%emt 0:00:06]} 82. Bf4 {[%emt 0:04:00]} Ke7 {[%emt 0:01:41]} 83. Bg5+ {[%emt 0:00:35]} Kd7 {[%emt 0:00:05]} 84. Ke3 {[%emt 0:00:14]} Ra3+ {[%emt 0:01:09]} 85. Kd4 {[%emt 0:00:07]} Ra5 {[%emt 0:00:16]} 86. Bd2 {[%emt 0:00:41]} Ra2 {[%emt 0:00:14]} 87. Ke5 {[%emt 0:00:23]} Ra3 {[%emt 0:00:54]} 88. Rh7+ {[%emt 0:00:51]} Kc8 {[%emt 0:00:29]} 89. Kd6 {[%emt 0:00:12]} Rd3+ {[%emt 0:01:32]} 90. Ke7 {[%emt 0:00:12]} Kb7 {[%emt 0:01:01]} 91. Kxe8+ {[%emt 0:00:06]} Ka8 {[%emt 0:00:05]} 92. Rd7 {[%emt 0:01:29]} Rf3 {[%emt 0:01:21]} 93. Rd8+ {[%emt 0:00:57]} Kxa7 {[%emt 0:00:05]} 94. Ba5 {[%emt 0:00:08]} Kb7 {[%emt 0:00:14]} 95. Bb6 {[%emt 0:00:13]} Ka6 {[%emt 0:00:08]} 96. Ra8+ {[%emt 0:00:11]} Kb5 {[%emt 0:00:04]} 97. Ra5+ {[%emt 0:00:04]} Kc4 {[%emt 0:00:03]} 98. Ra1 {[%emt 0:00:18]} Rd3 {[%emt 0:00:20]} 99. Re1 {[%emt 0:00:19]} Kb5 {[%emt 0:00:15]} 100. Re5 {[%emt 0:00:58]} Rh3 {[%emt 0:00:19]} 101. Kd7 {[%emt 0:00:57]} Rh6 {[%emt 0:00:15]} 102. Re6 {[%emt 0:00:26]} Rh7+ {[%emt 0:00:04]} 103. Re7 {[%emt 0:00:04]} Rh5 {[%emt 0:00:07]} 104. Kc7 {[%emt 0:03:44]} Rg5 {[%emt 0:00:35]} 105. Re1 {[%emt 0:01:19]} Rg7+ {[%emt 0:00:30]} 106. Kd6 {[%emt 0:00:05]} Rg6+ {[%emt 0:00:04]} 107. Ke5 {[%emt 0:00:11]} Rh6 {[%emt 0:00:32]} 108. Rb1+ {[%emt 0:00:52]} Kc4 {[%emt 0:00:06]} 109. Rc1+ {[%emt 0:01:03]} Kb5 {[%emt 0:00:05]} 110. Kd4 {[%emt 0:05:46]} Rh4+ {[%emt 0:00:09]} 111. Kc3 {[%emt 0:00:08]} Rh3+ {[%emt 0:00:09]} 112. Kb2 {[%emt 0:00:06]} Rh5 {[%emt 0:00:39]} 113. Rc3 {[%emt 0:01:01]} Kb4 {[%emt 0:00:23]} 114. Rb3+ {[%emt 0:00:38]} Kc4 {[%emt 0:00:06]} 115. Rg3 {[%emt 0:01:29]} Kb4 {[%emt 0:00:30]} 116. Rg4+ {[%emt 0:02:12]} Kb5 {[%emt 0:00:12]} 117. Kc3 {[%emt 0:00:23]} Rh3+ {[%emt 0:00:09]} 118. Kd4 {[%emt 0:00:10]} Rh5 {[%emt 0:00:04]} 119. Ba7 {[%emt 0:01:23]} Rd5+ {[%emt 0:00:42]} 120. Kc3 {[%emt 0:00:44]} Rh5 {[%emt 0:00:28]} 121. Rb4+ {[%emt 0:00:29]} Ka6 {[%emt 0:00:11]} 122. Bb6 {[%emt 0:03:42]} Rh3+ {[%emt 0:00:05]} 123. Kb2 {[%emt 0:00:19]} Rh2+ {[%emt 0:00:08]} 124. Ka3 {[%emt 0:00:03]} Rh3+ {[%emt 0:00:23]} 125. Ka4 {[%emt 0:00:20]} Rc3 {[%emt 0:03:01]} 126. Rd4 {[%emt 0:01:30]} Rc1 {[%emt 0:00:09]} 127. Rd8 {[%emt 0:01:02]} Ra1+ {[%emt 0:00:14]} 128. Kb3 {[%emt 0:00:38]} Kb5 {[%emt 0:00:05]} 129. Rb8 {[%emt 0:00:35]} Ra8 {[%emt 0:02:05]} 130. Rb7 {[%emt 0:00:25]} Rh8 {[%emt 0:00:07]} 131. Kc3 {[%emt 0:00:33]} Rh3+ {[%emt 0:00:06]} 132. Kd4 {[%emt 0:00:04]} Rh4+ {[%emt 0:00:04]} 133. Ke5 {[%emt 0:00:05]} Rh5+ {[%emt 0:00:05]} 134. Kd6 {[%emt 0:00:32]} Rh6+ {[%emt 0:00:09]} 135. Kc7 {[%emt 0:00:07]} Rh7+ {[%emt 0:00:23]} 136. Kb8 {[%emt 0:00:26]} Rh8+ {[%emt 0:00:17]} 137. Ka7 {[%emt 0:00:05]} Rh5 {[%emt 0:00:45]} 138. Ka8 {[%emt 0:01:22]} Rh8+ {[%emt 0:00:38]} 139. Rb8 {[%emt 0:00:15]} Rh7 {[%emt 0:00:04]} 140. Re8 {[%emt 0:01:30]} Rg7 {[%emt 0:00:31]} 141. Re5 {[%emt 0:00:37]} Rh7 {[%emt 0:00:35]} 142. Kb8 {[%emt 0:00:30]} Rh8+ {[%emt 0:00:08]} 143. Kb7 {[%emt 0:00:15]} 1/2-1/2

[Event "FIDE WYCC Open U14 2023"]
[Site "Montesilvano"]
[Date "2023.11.14"]
[Round "2.3"]
[White "Agasarov, Benik"]
[Black "Fan, Jingyi"]
[Result "0-1"]
[ECO "B30"]
[WhiteElo "2360"]
[BlackElo "2035"]
[Annotator "ChessBase"]
[PlyCount "60"]
[EventDate "2023.11.13"]
[EventType "swiss"]
[EventCountry "ITA"]
[SourceTitle "playchess.com"]
[Source "ChessBase"]
[SourceQuality "1"]
[TimeControl "40/5400+30:1800+30"]

1. e4 {[%emt 0:00:04]} c5 {[%emt 0:00:11]} 2. Nf3 {[%emt 0:00:06]} Nc6 {[%emt 0:00:10]} 3. Bb5 {[%emt 0:00:09]} e6 {[%emt 0:00:06]} 4. O-O {[%emt 0:00:06]} Nge7 {[%emt 0:00:07]} 5. Ba4 {[%emt 0:00:09]} a6 {[%emt 0:01:20]} 6. c3 {[%emt 0:00:38]} b5 {[%emt 0:00:03]} 7. Bc2 {[%emt 0:00:05]} Bb7 {[%emt 0:00:10]} 8. Re1 {[%emt 0:00:08]} Rc8 {[%emt 0:00:03]} 9. a4 {[%emt 0:00:06]} b4 {[%emt 0:07:00]} 10. d4 {[%emt 0:01:30]} bxc3 {[%emt 0:01:45]} 11. d5 {[%emt 0:00:33]} cxb2 {[%emt 0:03:00]} 12. Bxb2 {[%emt 0:00:05]} Nb4 {[%emt 0:00:10]} 13. a5 {[%emt 0:00:38]} Nxc2 {[%emt 0:02:44]} 14. Qxc2 {[%emt 0:00:05]} exd5 {[%emt 0:14:39]} 15. exd5 {[%emt 0:00:07]} Bxd5 {[%emt 0:00:11]} 16. Nc3 {[%emt 0:00:05]} Be6 {[%emt 0:11:19]} 17. Ne4 {[%emt 0:06:32]} Nf5 {[%emt 0:04:59]} 18. Nf6+ {[%emt 0:12:59]} gxf6 {[%emt 0:00:29]} 19. Qxf5 {[%emt 0:00:02]} Bg7 {[%emt 0:13:00]} 20. Qh5 {[%emt 0:00:36]} O-O {[%emt 0:01:29]} 21. Re4 {[%emt 0:00:46]} Re8 {[%emt 0:13:18]} 22. Rh4 {[%emt 0:00:15]} h6 {[%emt 0:03:36]} 23. g3 {[%emt 0:47:44]} Rb8 {[%emt 0:01:06]} 24. Bc1 {[%emt 0:01:17]} Rb5 {[%emt 0:01:13]} 25. Bxh6 {[%emt 0:16:58]} c4 {[%emt 0:00:37]} 26. Ng5 {[%emt 0:00:46]} Rxg5 {[%emt 0:00:20]} 27. Bxg5 {[%emt 0:02:09]} fxg5 {[%emt 0:00:06]} 28. Qh7+ {[%emt 0:00:20]} Kf8 {[%emt 0:00:04]} 29. Rxc4 {[%emt 0:01:40]} Bxc4 {[%emt 0:00:12]} 30. Rc1 {[%emt 0:00:08]} Bd5 {[%emt 0:00:39]} 0-1

[Event "FIDE WYCC Open U14 2023"]
[Site "Montesilvano"]
[Date "2023.11.14"]
[Round "2.4"]
[White "Morkunas, Gustas"]
[Black "Arca, Christian Gian Karlo"]
[Result "1/2-1/2"]
[ECO "B13"]
[WhiteElo "2052"]
[BlackElo "2347"]
[Annotator "ChessBase"]
[PlyCount "116"]
[EventDate "2023.11.13"]
[EventType "swiss"]
[EventCountry "ITA"]
[SourceTitle "playchess.com"]
[Source "ChessBase"]
[SourceQuality "1"]
[TimeControl "40/5400+30:1800+30"]

1. e4 {[%emt 0:00:03]} c6 {[%emt 0:00:05]} 2. d4 {[%emt 0:00:07]} d5 {[%emt 0:00:14]} 3. exd5 {[%emt 0:00:10]} cxd5 {[%emt 0:00:06]} 4. Bd3 {[%emt 0:00:10]} Nc6 {[%emt 0:00:05]} 5. c3 {[%emt 0:00:04]} Nf6 {[%emt 0:00:05]} 6. h3 {[%emt 0:00:08]} g6 {[%emt 0:00:40]} 7. Bf4 {[%emt 0:00:22]} Bg7 {[%emt 0:00:14]} 8. Nf3 {[%emt 0:00:14]} Bf5 {[%emt 0:00:13]} 9. Be2 {[%emt 0:00:07]} h5 {[%emt 0:00:13]} 10. O-O {[%emt 0:01:44]} Ne4 {[%emt 0:00:08]} 11. Nbd2 {[%emt 0:01:19]} e6 {[%emt 0:00:56]} 12. Qb3 {[%emt 0:08:59]} Qe7 {[%emt 0:02:24]} 13. Nxe4 {[%emt 0:13:46]} dxe4 {[%emt 0:10:31]} 14. Ne5 {[%emt 0:06:49]} Bxe5 {[%emt 0:03:06]} 15. Bxe5 {[%emt 0:03:09]} Nxe5 {[%emt 0:00:46]} 16. dxe5 {[%emt 0:00:46]} O-O-O {[%emt 0:01:11]} 17. Qc4+ {[%emt 0:06:43]} Kb8 {[%emt 0:01:19]} 18. Rad1 {[%emt 0:02:35]} Rd5 {[%emt 0:22:35]} 19. Rxd5 {[%emt 0:09:35]} exd5 {[%emt 0:00:51]} 20. Qd4 {[%emt 0:00:36]} Re8 {[%emt 0:00:14]} 21. Rd1 {[%emt 0:02:49]} Qxe5 {[%emt 0:03:02]} 22. Qxd5 {[%emt 0:02:13]} Qxd5 {[%emt 0:02:41]} 23. Rxd5 {[%emt 0:00:08]} Be6 {[%emt 0:02:39]} 24. Re5 {[%emt 0:03:51]} Rd8 {[%emt 0:02:12]} 25. Rxe4 {[%emt 0:01:19]} Rd2 {[%emt 0:00:19]} 26. b4 {[%emt 0:02:51]} Rxa2 {[%emt 0:00:41]} 27. h4 {[%emt 0:03:18]} Rc2 {[%emt 0:01:16]} 28. Re3 {[%emt 0:00:38]} b6 {[%emt 0:01:11]} 29. Ba6 {[%emt 0:06:50]} Kc7 {[%emt 0:01:27]} 30. f3 {[%emt 0:01:27]} Ra2 {[%emt 0:04:56]} 31. Bd3 {[%emt 0:01:36]} Kd6 {[%emt 0:00:27]} 32. Re4 {[%emt 0:05:52]} Ra3 {[%emt 0:05:27]} 33. Rd4+ {[%emt 0:01:14]} Kc7 {[%emt 0:00:06]} 34. c4 {[%emt 0:01:39]} a5 {[%emt 0:00:18]} 35. bxa5 {[%emt 0:02:20]} bxa5 {[%emt 0:00:45]} 36. Be4 {[%emt 0:01:50]} Rc3 {[%emt 0:04:01]} 37. Bd5 {[%emt 0:02:18]} a4 {[%emt 0:00:45]} 38. Bxe6 {[%emt 0:02:04]} fxe6 {[%emt 0:00:06]} 39. c5 {[%emt 0:00:14]} a3 {[%emt 0:00:15]} 40. Ra4 {[%emt 0:00:00]} Kc6 {[%emt 0:00:00]} 41. Ra5 {[%emt 0:00:22]} Kd5 {[%emt 0:00:13]} 42. Kh2 {[%emt 0:06:50]} Kc4 {[%emt 0:00:57]} 43. c6 {[%emt 0:01:17]} Kb3 {[%emt 0:00:55]} 44. Ra6 {[%emt 0:02:48]} e5 {[%emt 0:05:27]} 45. Rb6+ {[%emt 0:04:02]} Ka4 {[%emt 0:00:13]} 46. Ra6+ {[%emt 0:00:24]} Kb5 {[%emt 0:01:56]} 47. Ra8 {[%emt 0:01:11]} Kb6 {[%emt 0:00:46]} 48. Rb8+ {[%emt 0:03:00]} Kc7 {[%emt 0:03:43]} 49. Ra8 {[%emt 0:00:44]} Rb3 {[%emt 0:00:10]} 50. Ra6 {[%emt 0:01:17]} Kd6 {[%emt 0:00:19]} 51. Kg3 {[%emt 0:04:40]} Rc3 {[%emt 0:07:32]} 52. Kh2 {[%emt 0:04:22]} Kc7 {[%emt 0:03:38]} 53. Kg3 {[%emt 0:02:55]} Rb3 {[%emt 0:04:24]} 54. Kh2 {[%emt 0:01:04]} Kd6 {[%emt 0:01:46]} 55. Kg3 {[%emt 0:00:38]} Rc3 {[%emt 0:01:00]} 56. Kh2 {[%emt 0:00:20]} Rd3 {[%emt 0:11:39]} 57. Kg3 {[%emt 0:01:39]} Rb3 {[%emt 0:00:15]} 58. Kh2 {[%emt 0:01:07]} Kc7 {[%emt 0:02:53]} 1/2-1/2

[Event "FIDE WYCC Open U14 2023"]
[Site "Montesilvano"]
[Date "2023.11.14"]
[Round "2.5"]
[White "Sowinski, Pawel"]
[Black "Kazantzoglou, Stefanos"]
[Result "1/2-1/2"]
[ECO "C78"]
[WhiteElo "2347"]
[BlackElo "2031"]
[Annotator "ChessBase"]
[PlyCount "78"]
[EventDate "2023.11.13"]
[EventType "swiss"]
[EventCountry "ITA"]
[SourceTitle "playchess.com"]
[Source "ChessBase"]
[SourceQuality "1"]
[TimeControl "40/5400+30:1800+30"]

1. e4 {[%emt 0:00:02]} e5 {[%emt 0:00:04]} 2. Nf3 {[%emt 0:00:05]} Nc6 {[%emt 0:00:03]} 3. Bb5 {[%emt 0:00:04]} a6 {[%emt 0:00:07]} 4. Ba4 {[%emt 0:00:01]} Nf6 {[%emt 0:00:12]} 5. O-O {[%emt 0:00:03]} b5 {[%emt 0:00:27]} 6. Bb3 {[%emt 0:00:01]} Bc5 {[%emt 0:00:08]} 7. a4 {[%emt 0:00:21]} Rb8 {[%emt 0:00:03]} 8. c3 {[%emt 0:00:06]} d6 {[%emt 0:00:17]} 9. d4 {[%emt 0:00:02]} Bb6 {[%emt 0:00:23]} 10. axb5 {[%emt 0:03:22]} axb5 {[%emt 0:00:09]} 11. Qd3 {[%emt 0:02:11]} O-O {[%emt 0:09:56]} 12. Na3 {[%emt 0:03:13]} Bg4 {[%emt 0:02:19]} 13. d5 {[%emt 0:10:10]} Ne7 {[%emt 0:09:56]} 14. h3 {[%emt 0:13:52]} Bd7 {[%emt 0:05:03]} 15. Bg5 {[%emt 0:23:18]} Ng6 {[%emt 0:04:08]} 16. Nh4 {[%emt 0:02:26]} h6 {[%emt 0:01:37]} 17. Bxf6 {[%emt 0:22:41]} Qxf6 {[%emt 0:00:18]} 18. Nf5 {[%emt 0:03:25]} Nf4 {[%emt 0:02:40]} 19. Qf3 {[%emt 0:00:02]} Bxf5 {[%emt 0:05:58]} 20. exf5 {[%emt 0:00:03]} Qxf5 {[%emt 0:00:08]} 21. Bc2 {[%emt 0:00:14]} Qh5 {[%emt 0:05:49]} 22. Qxh5 {[%emt 0:02:52]} Nxh5 {[%emt 0:00:02]} 23. Nxb5 {[%emt 0:09:41]} Bxf2+ {[%emt 0:12:32]} 24. Rxf2 {[%emt 0:00:02]} Rxb5 {[%emt 0:00:02]} 25. b4 {[%emt 0:00:01]} Nf6 {[%emt 0:03:12]} 26. Bb3 {[%emt 0:00:55]} Ne4 {[%emt 0:00:52]} 27. Rc2 {[%emt 0:01:52]} Rbb8 {[%emt 0:01:39]} 28. Ra7 {[%emt 0:00:57]} Rfc8 {[%emt 0:00:14]} 29. Bc4 {[%emt 0:00:57]} Ra8 {[%emt 0:01:50]} 30. Ra5 {[%emt 0:01:33]} Rxa5 {[%emt 0:06:20]} 31. bxa5 {[%emt 0:00:00]} Nc5 {[%emt 0:01:02]} 32. Ra2 {[%emt 0:00:09]} Ra8 {[%emt 0:11:02]} 33. a6 {[%emt 0:00:01]} Ra7 {[%emt 0:00:01]} 34. g4 {[%emt 0:00:22]} Kf8 {[%emt 0:00:40]} 35. Kg2 {[%emt 0:00:14]} Ke7 {[%emt 0:00:25]} 36. Kf3 {[%emt 0:00:41]} Kd8 {[%emt 0:01:15]} 37. h4 {[%emt 0:01:56]} f6 {[%emt 0:00:29]} 38. Ke3 {[%emt 0:00:56]} Kc8 {[%emt 0:00:56]} 39. Bb5 {[%emt 0:00:31]} Kd8 1/2-1/2

[Event "FIDE WYCC Open U14 2023"]
[Site "Montesilvano"]
[Date "2023.11.14"]
[Round "2.6"]
[White "La Barbera, Manfredi"]
[Black "Daakshin Arun"]
[Result "0-1"]
[ECO "B93"]
[WhiteElo "2043"]
[BlackElo "2342"]
[Annotator "ChessBase"]
[PlyCount "64"]
[EventDate "2023.11.13"]
[EventType "swiss"]
[EventCountry "ITA"]
[SourceTitle "playchess.com"]
[Source "ChessBase"]
[SourceQuality "1"]
[TimeControl "40/5400+30:1800+30"]

1. e4 {[%emt 0:00:06]} c5 {[%emt 0:00:26]} 2. Nf3 {[%emt 0:00:17]} d6 {[%emt 0:00:19]} 3. d4 {[%emt 0:00:18]} cxd4 {[%emt 0:00:07]} 4. Nxd4 {[%emt 0:00:06]} Nf6 {[%emt 0:00:10]} 5. Nc3 {[%emt 0:00:12]} a6 {[%emt 0:00:07]} 6. f4 {[%emt 0:00:28]} e5 {[%emt 0:01:08]} 7. Nb3 {[%emt 0:00:16]} Be7 {[%emt 0:03:19]} 8. fxe5 {[%emt 0:00:19]} dxe5 {[%emt 0:05:42]} 9. Qxd8+ {[%emt 0:00:10]} Bxd8 {[%emt 0:00:35]} 10. Be3 {[%emt 0:00:45]} Nbd7 {[%emt 0:05:10]} 11. Be2 {[%emt 0:01:39]} b5 {[%emt 0:05:49]} 12. a4 {[%emt 0:11:41]} b4 {[%emt 0:01:05]} 13. Nd5 {[%emt 0:00:04]} Rb8 {[%emt 0:07:30]} 14. Bf3 {[%emt 0:13:06]} a5 {[%emt 0:07:55]} 15. O-O-O {[%emt 0:04:27]} Bb7 {[%emt 0:06:23]} 16. Nxf6+ {[%emt 0:21:42]} Nxf6 {[%emt 0:01:30]} 17. Bc5 {[%emt 0:00:31]} Nxe4 {[%emt 0:10:35]} 18. Rhe1 {[%emt 0:05:51]} f5 {[%emt 0:01:32]} 19. g4 {[%emt 0:11:58]} Bh4 {[%emt 0:08:12]} 20. Re2 {[%emt 0:07:04]} Bg5+ {[%emt 0:03:37]} 21. Kb1 {[%emt 0:01:13]} Bf6 {[%emt 0:01:19]} 22. Ba7 {[%emt 0:02:38]} Ra8 {[%emt 0:00:31]} 23. g5 {[%emt 0:12:54]} Nxg5 {[%emt 0:08:40]} 24. Bxb7 {[%emt 0:00:47]} Rxa7 {[%emt 0:00:03]} 25. Nc5 {[%emt 0:01:09]} O-O {[%emt 0:04:22]} 26. Rd7 {[%emt 0:00:58]} Kh8 {[%emt 0:02:00]} 27. h4 {[%emt 0:00:27]} Nh3 {[%emt 0:01:06]} 28. Red2 {[%emt 0:01:55]} Nf4 {[%emt 0:01:26]} 29. h5 {[%emt 0:00:37]} h6 {[%emt 0:01:05]} 30. Rh2 {[%emt 0:01:16]} Rd8 {[%emt 0:03:33]} 31. Rf7 {[%emt 0:00:18]} e4 {[%emt 0:03:01]} 32. Rf2 {[%emt 0:00:19]} e3 {[%emt 0:01:03]} 0-1

[Event "FIDE WYCC Open U14 2023"]
[Site "Montesilvano"]
[Date "2023.11.14"]
[Round "2.7"]
[White "Demirtas, Alper"]
[Black "Dotzer, Lukas"]
[Result "1/2-1/2"]
[ECO "E04"]
[WhiteElo "2034"]
[BlackElo "2339"]
[Annotator "ChessBase"]
[PlyCount "61"]
[EventDate "2023.11.13"]
[EventType "swiss"]
[EventCountry "ITA"]
[SourceTitle "playchess.com"]
[Source "ChessBase"]
[SourceQuality "1"]
[TimeControl "40/5400+30:1800+30"]

1. Nf3 {[%emt 0:00:03]} Nf6 {[%emt 0:00:05]} 2. c4 {[%emt 0:00:03]} e6 {[%emt 0:00:05]} 3. g3 {[%emt 0:00:05]} d5 {[%emt 0:00:05]} 4. d4 {[%emt 0:00:07]} dxc4 {[%emt 0:00:05]} 5. Bg2 {[%emt 0:03:57]} Bb4+ {[%emt 0:01:31]} 6. Bd2 {[%emt 0:01:25]} a5 {[%emt 0:00:11]} 7. O-O {[%emt 0:05:05]} O-O {[%emt 0:01:04]} 8. Bg5 {[%emt 0:08:57]} Nbd7 {[%emt 0:14:23]} 9. Qc2 {[%emt 0:07:38]} h6 {[%emt 0:05:19]} 10. Bxf6 {[%emt 0:04:18]} Qxf6 {[%emt 0:04:08]} 11. Qxc4 {[%emt 0:04:45]} c6 {[%emt 0:03:34]} 12. a3 {[%emt 0:03:39]} Be7 {[%emt 0:01:10]} 13. Nc3 {[%emt 0:02:05]} e5 {[%emt 0:09:02]} 14. d5 {[%emt 0:14:28]} Nb6 {[%emt 0:08:06]} 15. Qb3 {[%emt 0:01:38]} Nxd5 {[%emt 0:03:47]} 16. Nxd5 {[%emt 0:00:40]} cxd5 {[%emt 0:00:07]} 17. Qxd5 {[%emt 0:00:05]} Qb6 {[%emt 0:10:20]} 18. Rab1 {[%emt 0:07:22]} Be6 {[%emt 0:05:56]} 19. Qxe5 {[%emt 0:01:29]} Bf6 {[%emt 0:00:33]} 20. Qe3 {[%emt 0:02:10]} Qxe3 {[%emt 0:00:37]} 21. fxe3 {[%emt 0:00:01]} Bf5 {[%emt 0:08:32]} 22. Rbd1 {[%emt 0:02:28]} Rfe8 {[%emt 0:03:34]} 23. Nd4 {[%emt 0:04:08]} Be4 {[%emt 0:01:22]} 24. Bxe4 {[%emt 0:05:55]} Rxe4 {[%emt 0:00:07]} 25. Rf3 {[%emt 0:00:34]} Rae8 {[%emt 0:08:19]} 26. Kf2 {[%emt 0:01:10]} a4 {[%emt 0:02:08]} 27. Rd3 {[%emt 0:06:15]} R4e5 {[%emt 0:05:32]} 28. b3 {[%emt 0:04:23]} axb3 {[%emt 0:02:05]} 29. Rxb3 {[%emt 0:02:49]} Rxe3 {[%emt 0:01:37]} 30. Rfxe3 {[%emt 0:00:02]} Bxd4 {[%emt 0:00:08]} 31. Kf3 {[%emt 0:00:05]} 1/2-1/2